fUSD/lending_fUSD_20251225
["ID","MTS","AMOUNT","RATE_DAILY","PERIOD"]
[399802796,1766685043708,-604.65,0.00015967,2]
[399802797,1766685043719,-150.0,0.00015979,2]
[399802798,1766685043728,-150.0,0.00015987,2]
[399802799,1766685043738,-150.0,0.00015988,2]
[399802800,1766685043748,-150.0,0.00015989,2]
[399802801,1766685043758,-150.0,0.00015995,2]
[399802802,1766685043769,-150.0,0.00015998,2]
[399802803,1766685043779,-536.56,0.00015999,2]
[399802804,1766685043789,-500.0,0.00015999,2]
[399802805,1766685043799,-150.0,0.00016003,2]
[399802806,1766685043810,-435.0169277,0.00016004,2]
[399802807,1766685043820,-534.14774107,0.00016004,2]
[399802808,1766685043829,-1627.68,0.00016004,2]
[399802809,1766685043840,-10147.35490038,0.00016004,2]
[399802810,1766685043850,-150.0,0.00016007,2]
[399802812,1766685043859,-150.0,0.00016007,2]
[399802814,1766685043869,-150.0,0.0001601,2]
[399802815,1766685043879,-150.0,0.00016016,2]
[399802816,1766685043889,-150.0,0.00016026,2]
[399802817,1766685043899,-150.0,0.00016026,2]
[399802819,1766685043909,-150.0,0.00016027,2]
[399802821,1766685043918,-150.0,0.00016029,2]
[399802823,1766685043928,-150.0,0.00016031,2]
[399802824,1766685043938,-150.0,0.00016036,2]
[399802825,1766685043948,-150.0,0.00016047,2]
[399802826,1766685043958,-150.0,0.00016052,2]
[399802827,1766685043969,-242.12,0.00016053,2]
[399802828,1766685043979,-653.0,0.00016055,2]
[399802829,1766685043989,-166.66,0.00016059,2]
[399802830,1766685043999,-150.0,0.0001606,2]
[399802831,1766685044010,-150.0,0.00016063,2]
[399802832,1766685044020,-150.0,0.00016064,2]
[399802833,1766685044031,-150.0,0.00016065,2]
[399802834,1766685044041,-150.0,0.00016067,2]
[399802835,1766685044051,-150.0,0.00016073,2]
[399802836,1766685044061,-150.0,0.0001608,2]
[399802837,1766685044071,-150.0,0.00016087,2]
[399802838,1766685044081,-150.0,0.00016091,2]
[399802839,1766685044092,-150.0,0.00016092,2]
[399802840,1766685044102,-150.0,0.00016094,2]
[399802841,1766685044112,-150.0,0.00016095,2]
[399802842,1766685044122,-150.0,0.000161,2]
[399802843,1766685044132,-150.0,0.000161,2]
[399802844,1766685044142,-150.0,0.00016107,2]
[399802845,1766685044152,-3166.8,0.00016112,2]
[399802846,1766685044164,-150.0,0.00016113,2]
[399802847,1766685044173,-150.0,0.00016116,2]
[399802848,1766685044183,-150.0,0.00016122,2]
[399802849,1766685044192,-150.0,0.00016123,2]
[399802850,1766685044409,-150.0,0.00016127,2]
[399802851,1766685044421,-163.38,0.00016129,2]
[399802852,1766685044431,-266.52,0.00016134,2]
[399802853,1766685044440,-150.0,0.00016137,2]
[399802854,1766685044451,-150.0,0.00016137,2]
[399802855,1766685044461,-150.0,0.00016137,2]
[399802856,1766685044471,-150.0,0.00016147,2]
[399802857,1766685044482,-578.20924308,0.00016149,2]
[399802858,1766685044493,-3610.92924073,0.00016149,2]
[399802859,1766685044503,-500.0,0.00016149,2]
[399802860,1766685044514,-500.0,0.00016149,2]
[399802861,1766685044523,-500.0,0.00016149,2]
[399802862,1766685044534,-500.0,0.00016149,2]
[399802863,1766685044544,-500.0,0.00016149,2]
[399802864,1766685044554,-500.0,0.00016149,2]
[399802865,1766685044565,-500.0,0.00016149,2]
[399802866,1766685044575,-500.0,0.00016149,2]
[399802867,1766685044585,-500.0,0.00016149,2]
[399802868,1766685044595,-574.12855637,0.00016149,2]
[399802869,1766685044605,-283.18901002,0.00016149,2]
[399802870,1766685044615,-500.0,0.00016149,2]
[399802871,1766685044625,-500.0,0.00016149,2]
[399802872,1766685044635,-500.0,0.00016149,2]
[399802873,1766685044647,-151.0,0.00016149,2]
[399802874,1766685044657,-500.0,0.00016149,2]
[399802875,1766685044667,-620.0,0.00016149,2]
[399802876,1766685044678,-500.0,0.00016149,2]
[399802877,1766685044688,-500.0,0.00016149,2]
[399802878,1766685044698,-500.0,0.00016149,2]
[399802879,1766685044709,-500.0,0.00016149,2]
[399802880,1766685044720,-250.0,0.00016149,2]
[399802881,1766685044729,-250.0,0.00016149,2]
[399802882,1766685044739,-500.0,0.00016149,2]
[399802883,1766685044749,-500.0,0.00016149,2]
[399802884,1766685044759,-250.0,0.00016149,2]
[399802885,1766685044770,-500.0,0.00016149,2]
[399802886,1766685044780,-250.0,0.00016149,2]
[399802887,1766685044791,-500.0,0.00016149,2]
[399802888,1766685044801,-250.0,0.00016149,2]
[399802889,1766685044811,-322.6107,0.00016149,2]
[399802890,1766685044821,-250.0,0.00016149,2]
[399802891,1766685044831,-500.0,0.00016149,2]
[399802892,1766685044841,-250.0,0.00016149,2]
[399802893,1766685044850,-500.0,0.00016149,2]
[399802894,1766685044860,-250.0,0.00016149,2]
[399802895,1766685044870,-500.0,0.00016149,2]
[399802896,1766685044881,-1500.0,0.00016149,2]
[399802897,1766685044891,-250.0,0.00016149,2]
[399802898,1766685044902,-1500.0,0.00016149,2]
[399802899,1766685044912,-250.0,0.00016149,2]
[399802900,1766685044923,-1500.0,0.00016149,2]
[399802901,1766685044933,-250.0,0.00016149,2]
[399802902,1766685044944,-1500.0,0.00016149,2]
[399802903,1766685044954,-1500.0,0.00016149,2]
[399802904,1766685044964,-1500.0,0.00016149,2]
[399802905,1766685044975,-1500.0,0.00016149,2]
[399802906,1766685044985,-250.0,0.00016149,2]
[399802907,1766685044995,-1500.0,0.00016149,2]
[399802908,1766685045006,-250.0,0.00016149,2]
[399802909,1766685045016,-1500.0,0.00016149,2]
[399802910,1766685045027,-250.0,0.00016149,2]
[399802911,1766685045036,-1500.0,0.00016149,2]
[399802912,1766685045046,-250.0,0.00016149,2]
[399802913,1766685045056,-200.0,0.00016149,2]
[399802914,1766685045066,-250.0,0.00016149,2]
[399802915,1766685045076,-207.4,0.00016149,2]
[399802916,1766685045087,-1500.0,0.00016149,2]
[399802917,1766685045098,-215.0738,0.00016149,2]
[399802918,1766685045108,-223.0315306,0.00016149,2]
[399802919,1766685045119,-231.28369723,0.00016149,2]
[399802920,1766685045130,-239.84119403,0.00016149,2]
[399802921,1766685045140,-248.71531821,0.00016149,2]
[399802922,1766685045150,-257.91778498,0.00016149,2]
[399802923,1766685045161,-267.46074303,0.00016149,2]
[399802924,1766685045172,-277.35679052,0.00016149,2]
[399802925,1766685045183,-250.0,0.00016149,2]
[399802926,1766685045192,-250.0,0.00016149,2]
[399802927,1766685045203,-250.0,0.00016149,2]
[399802928,1766685045213,-250.0,0.00016149,2]
[399802929,1766685045223,-250.0,0.00016149,2]
[399802930,1766685045234,-250.0,0.00016149,2]
[399802931,1766685045244,-250.0,0.00016149,2]
[399802932,1766685045254,-250.0,0.00016149,2]
[399802933,1766685045265,-250.0,0.00016149,2]
[399802934,1766685045275,-250.0,0.00016149,2]
[399802935,1766685045287,-250.0,0.00016149,2]
[399802936,1766685045301,-150.0,0.00016151,2]
[399802937,1766685045317,-150.0,0.00016152,2]
[399802938,1766685045331,-150.0,0.00016158,2]
[399802939,1766685045341,-150.0,0.00016161,2]
[399802940,1766685045351,-150.0,0.00016167,2]
[399802941,1766685045362,-150.0,0.00016174,2]
[399802942,1766685045372,-150.0,0.00016174,2]
[399802943,1766685045382,-150.0,0.00016179,2]
[399802944,1766685045393,-150.0,0.0001618,2]
[399802945,1766685045403,-150.0,0.00016182,2]
[399802946,1766685045414,-536.56,0.00016183,2]
[399802947,1766685045424,-150.0,0.00016183,2]
[399802948,1766685045435,-500.0,0.00016183,2]
[399802949,1766685045445,-500.0,0.00016183,2]
[399802950,1766685045455,-500.0,0.00016183,2]
[399802951,1766685045465,-500.0,0.00016183,2]
[399802952,1766685045475,-500.0,0.00016183,2]
[399802953,1766685045485,-515.54072242,0.00016183,2]
[399802954,1766685045495,-648.46173605,0.00016183,2]
[399802955,1766685045506,-500.0,0.00016183,2]
[399802956,1766685045516,-500.0,0.00016183,2]
[399802957,1766685045527,-500.0,0.00016183,2]
[399802958,1766685045536,-500.0,0.00016183,2]
[399802959,1766685045546,-500.0,0.00016183,2]
[399802960,1766685045556,-500.0,0.00016183,2]
[399802961,1766685045565,-349.16265713,0.00016183,2]
[399802962,1766685045574,-500.0,0.00016183,2]
[399802963,1766685045584,-500.0,0.00016183,2]
[399802964,1766685045593,-168.21782,0.00016183,2]
[399802965,1766685045602,-500.0,0.00016183,2]
[399802966,1766685045611,-500.0,0.00016183,2]
[399802967,1766685045622,-500.0,0.00016183,2]
[399802968,1766685045632,-160.176,0.00016183,2]
[399802969,1766685045642,-500.0,0.00016183,2]
[399802970,1766685045652,-500.0,0.00016183,2]
[399802971,1766685045663,-500.0,0.00016183,2]
[399802972,1766685045672,-500.0,0.00016183,2]
[399802973,1766685045682,-500.0,0.00016183,2]
[399802974,1766685045692,-500.0,0.00016183,2]
[399802975,1766685045703,-500.0,0.00016183,2]
[399802976,1766685045713,-500.0,0.00016183,2]
[399802977,1766685045724,-500.66742167,0.00016183,2]
[399802978,1766685045734,-500.0,0.00016183,2]
[399802979,1766685045745,-500.0,0.00016183,2]
[399802980,1766685045755,-500.0,0.00016183,2]
[399802981,1766685045765,-500.0,0.00016183,2]
[399802982,1766685045775,-500.0,0.00016183,2]
[399802983,1766685045785,-500.0,0.00016183,2]
[399802984,1766685045795,-164.92711325,0.00016183,2]
[399802985,1766685045805,-150.0,0.00016187,2]
[399802986,1766685045815,-150.0,0.00016194,2]
[399802987,1766685045825,-150.0,0.00016201,2]
[399802988,1766685045835,-653.0,0.00016207,2]
[399802989,1766685045845,-150.0,0.00016207,2]
[399802990,1766685045855,-150.0,0.00016209,2]
[399802991,1766685045866,-150.0,0.0001621,2]
[399802992,1766685045875,-150.0,0.00016211,2]
[399802993,1766685045885,-150.0,0.00016214,2]
[399802994,1766685045896,-150.0,0.00016222,2]
[399802995,1766685045906,-150.0,0.00016227,2]
[399802996,1766685045917,-10147.35490038,0.00016228,2]
[399802997,1766685045928,-150.0,0.00016238,2]
[399802998,1766685045939,-150.0,0.00016243,2]
[399802999,1766685045950,-150.0,0.00016245,2]
[399803000,1766685045961,-150.0,0.00016247,2]
[399803001,1766685045972,-150.0,0.00016248,2]
[399803002,1766685045982,-150.0,0.00016248,2]
[399803003,1766685045993,-150.0,0.00016258,2]
[399803004,1766685046004,-150.0,0.00016264,2]
[399803006,1766685046014,-150.0,0.00016267,2]
[399803007,1766685046025,-150.0,0.00016267,2]
[399803008,1766685046036,-150.0,0.00016271,2]
[399803009,1766685046046,-150.0,0.00016276,2]
[399803010,1766685046057,-150.0,0.00016279,2]
[399803011,1766685046067,-150.0,0.00016285,2]
[399803012,1766685046077,-150.0,0.00016286,2]
[399803013,1766685046089,-150.0,0.00016287,2]
[399803015,1766685046099,-150.0,0.00016295,2]
[399803017,1766685046109,-150.0,0.00016307,2]
[399803018,1766685046119,-150.0,0.00016307,2]
[399803019,1766685046130,-150.0,0.00016307,2]
[399803020,1766685046140,-150.0,0.00016307,2]
[399803021,1766685046150,-150.0,0.00016307,2]
[399803022,1766685046159,-150.0,0.00016307,2]
[399803024,1766685046169,-1175.0,0.00016314,2]
[399803025,1766685046179,-150.0,0.00016322,2]
[399803026,1766685046189,-150.0,0.00016322,2]
[399803027,1766685046200,-3151.0,0.00016323,2]
[399803028,1766685046211,-1327.0,0.00016323,2]
[399803029,1766685046221,-1610.0,0.00016323,2]
[399803030,1766685046231,-3459.0,0.00016323,2]
[399803031,1766685046243,-618.307,0.00016323,2]
[399803032,1766685046254,-432.0,0.00016323,2]
[399803033,1766685046266,-1271.446,0.00016323,2]
[399803034,1766685046278,-6534.0,0.00016323,2]
[399803035,1766685046289,-4807.0,0.00016323,2]
[399803036,1766685046299,-576.965,0.00016323,2]
[399803037,1766685046311,-150.0,0.00016324,2]
[399803038,1766685046329,-150.0,0.00016327,2]
[399803039,1766685046339,-150.0,0.00016328,2]
[399803040,1766685046351,-150.0,0.00016338,2]
[399803041,1766685046361,-150.0,0.00016347,2]
[399803042,1766685046370,-150.0,0.00016349,2]
[399803043,1766685046380,-150.0,0.00016353,2]
[399803044,1766685046391,-150.0,0.00016355,2]
[399803045,1766685046402,-150.0,0.00016359,2]
[399803046,1766685046412,-150.0,0.0001636,2]
[399803047,1766685046422,-150.0,0.00016367,2]
[399803048,1766685046433,-150.0,0.00016369,2]
[399803049,1766685046448,-150.0,0.00016371,2]
[399803050,1766685046459,-150.0,0.00016382,2]
[399803051,1766685046469,-150.0,0.00016387,2]
[399803052,1766685046479,-653.0,0.0001639,2]
[399803053,1766685046490,-166.66,0.0001639,2]
[399803054,1766685046501,-150.0,0.00016392,2]
[399803055,1766685046510,-150.0,0.00016395,2]
[399803056,1766685046520,-150.0,0.00016395,2]
[399803057,1766685046532,-150.0,0.000164,2]
[399803058,1766685046542,-228.0,0.000164,2]
[399803059,1766685046553,-319.0,0.000164,2]
[399803060,1766685046564,-182.0,0.000164,2]
[399803061,1766685046575,-184.24951816,0.000164,2]
[399803062,1766685046585,-41325.20904142,0.00016404,2]
[399803063,1766685046595,-583.07830005,0.00016404,2]
[399803064,1766685046606,-150.0,0.00016404,2]
[399803065,1766685046616,-150.0,0.00016407,2]
[399803066,1766685046626,-150.0,0.0001641,2]
[399803067,1766685046636,-150.0,0.00016413,2]
[399803068,1766685046647,-150.0,0.0001642,2]
[399803069,1766685046657,-150.0,0.0001642,2]
[399803070,1766685046667,-150.0,0.0001642,2]
[399803071,1766685046677,-163.38,0.00016426,2]
[399803072,1766685046687,-150.0,0.00016427,2]
[399803073,1766685046697,-150.0,0.0001643,2]
[399803075,1766685046708,-150.0,0.00016432,2]
[399803076,1766685046719,-150.0,0.00016434,2]
[399803077,1766685046729,-500.0,0.00016437,2]
[399803078,1766685046739,-183.93452706,0.00016437,2]
[399803079,1766685046748,-500.0,0.00016438,2]
[399803080,1766685046759,-500.0,0.00016438,2]
[399803081,1766685046768,-500.0,0.00016438,2]
[399803082,1766685046779,-500.0,0.00016438,2]
[399803083,1766685046790,-500.0,0.00016438,2]
[399803084,1766685046800,-500.0,0.00016438,2]
[399803085,1766685046809,-500.0,0.00016438,2]
[399803087,1766685046820,-500.0,0.00016438,2]
[399803089,1766685046829,-500.0,0.00016438,2]
[399803091,1766685046839,-500.0,0.00016438,2]
[399803094,1766685046849,-500.0,0.00016438,2]
[399803096,1766685046858,-500.0,0.00016438,2]
[399803098,1766685046869,-500.0,0.00016438,2]
[399803100,1766685046879,-500.0,0.00016438,2]
[399803101,1766685046889,-500.0,0.00016438,2]
[399803102,1766685046997,-500.0,0.00016438,2]
[399803103,1766685047009,-500.0,0.00016438,2]
[399803104,1766685047019,-500.0,0.00016438,2]
[399803105,1766685047029,-500.0,0.00016438,2]
[399803106,1766685047038,-500.0,0.00016438,2]
[399803107,1766685047048,-500.0,0.00016438,2]
[399803108,1766685047058,-500.0,0.00016438,2]
[399803109,1766685047068,-500.0,0.00016438,2]
[399803110,1766685047078,-500.0,0.00016438,2]
[399803111,1766685047087,-500.0,0.00016438,2]
[399803112,1766685047097,-500.0,0.00016438,2]
[399803113,1766685047107,-500.0,0.00016438,2]
[399803114,1766685047116,-500.0,0.00016438,2]
[399803115,1766685047126,-500.0,0.00016438,2]
[399803116,1766685047136,-500.0,0.00016438,2]
[399803117,1766685047145,-500.0,0.00016438,2]
[399803118,1766685047155,-500.0,0.00016438,2]
[399803119,1766685047165,-500.0,0.00016438,2]
[399803120,1766685047175,-500.0,0.00016438,2]
[399803121,1766685047185,-500.0,0.00016438,2]
[399803122,1766685047195,-500.0,0.00016438,2]
[399803123,1766685047205,-500.0,0.00016438,2]
[399803124,1766685047215,-500.0,0.00016438,2]
[399803125,1766685047224,-500.0,0.00016438,2]
[399803126,1766685047235,-500.0,0.00016438,2]
[399803127,1766685047244,-500.0,0.00016438,2]
[399803128,1766685047255,-500.0,0.00016438,2]
[399803129,1766685047264,-500.0,0.00016438,2]
[399803130,1766685047275,-500.0,0.00016438,2]
[399803131,1766685047284,-500.0,0.00016438,2]
[399803132,1766685047293,-500.0,0.00016438,2]
[399803133,1766685047302,-500.0,0.00016438,2]
[399803134,1766685047313,-500.0,0.00016438,2]
[399803135,1766685047325,-500.0,0.00016438,2]
[399803136,1766685047334,-500.0,0.00016438,2]
[399803137,1766685047344,-500.0,0.00016438,2]
[399803138,1766685047354,-500.0,0.00016438,2]
[399803139,1766685047364,-500.0,0.00016438,2]
[399803140,1766685047373,-500.0,0.00016438,2]
[399803141,1766685047382,-500.0,0.00016438,2]
[399803142,1766685047395,-500.0,0.00016438,2]
[399803143,1766685047405,-12857.11,0.00016438,2]
[399803144,1766685047415,-809.0,0.00016438,2]
[399803145,1766685047424,-716.0,0.00016438,2]
[399803146,1766685047434,-800.0,0.00016438,2]
[399803147,1766685047443,-150.0,0.00016439,2]
[399803148,1766685047454,-164.98,0.0001644,2]
[399803149,1766685047464,-150.0,0.00016447,2]
[399803150,1766685047475,-150.0,0.0001645,2]
[399803151,1766685047485,-10147.35490038,0.00016452,2]
[399803152,1766685047495,-150.0,0.00016452,2]
[399803153,1766685047505,-150.0,0.00016455,2]
[399803154,1766685047515,-150.0,0.00016461,2]
[399803155,1766685047525,-163.38,0.00016462,2]
[399803156,1766685047534,-500.0,0.00016465,2]
[399803157,1766685047544,-150.0,0.00016467,2]
[399803158,1766685047553,-150.0,0.00016468,2]
[399803159,1766685047564,-150.0,0.00016469,2]
[399803160,1766685047573,-150.0,0.00016469,2]
[399803161,1766685047583,-150.0,0.00016477,2]
[399803162,1766685047592,-150.0,0.00016487,2]
[399803163,1766685047601,-150.0,0.00016492,2]
[399803164,1766685047611,-500.0,0.00016493,2]
[399803165,1766685047620,-150.0,0.00016497,2]
[399803166,1766685047630,-150.0,0.00016498,2]
[399803167,1766685047640,-150.0,0.00016501,2]
[399803168,1766685047650,-150.0,0.00016506,2]
[399803169,1766685047661,-150.0,0.00016507,2]
[399803170,1766685047671,-150.0,0.00016519,2]
[399803171,1766685047680,-500.0,0.0001652,2]
[399803172,1766685047690,-150.0,0.00016523,2]
[399803173,1766685047699,-150.0,0.00016526,2]
[399803174,1766685047710,-150.0,0.00016527,2]
[399803175,1766685047719,-150.0,0.00016533,2]
[399803176,1766685047728,-150.0,0.00016539,2]
[399803177,1766685047738,-150.0,0.0001654,2]
[399803178,1766685047748,-150.0,0.00016543,2]
[399803179,1766685047758,-150.0,0.00016543,2]
[399803180,1766685047767,-150.0,0.00016547,2]
[399803181,1766685047777,-150.0,0.0001655,2]
[399803182,1766685047787,-150.0,0.00016554,2]
[399803183,1766685047797,-150.0,0.00016554,2]
[399803184,1766685047807,-150.0,0.00016562,2]
[399803185,1766685047818,-150.0,0.00016562,2]
[399803186,1766685047828,-150.0,0.00016567,2]
[399803187,1766685047838,-1175.0,0.00016572,2]
[399803188,1766685047848,-150.0,0.0001658,2]
[399803189,1766685047858,-150.0,0.00016583,2]
[399803190,1766685047869,-150.0,0.00016583,2]
[399803191,1766685047880,-150.0,0.00016585,2]
[399803192,1766685047890,-150.0,0.00016587,2]
[399803193,1766685047900,-150.0,0.00016598,2]
[399803194,1766685047910,-1175.0,0.00016598,2]
[399803195,1766685047921,-1000.0,0.000166,2]
[399803196,1766685047931,-150.0,0.00016604,2]
[399803197,1766685047941,-150.0,0.00016607,2]
[399803198,1766685047951,-150.0,0.00016612,2]
[399803199,1766685047962,-150.0,0.00016616,2]
[399803200,1766685047973,-150.0,0.00016617,2]
[399803201,1766685047983,-150.0,0.00016617,2]
[399803202,1766685047993,-150.0,0.00016625,2]
[399803203,1766685048003,-150.0,0.00016627,2]
[399803204,1766685048013,-150.0,0.00016629,2]
[399803205,1766685048024,-150.0,0.00016641,2]
[399803206,1766685048034,-150.0,0.00016647,2]
[399803207,1766685048044,-150.0,0.00016647,2]
[399803208,1766685048054,-150.0,0.00016647,2]
[399803209,1766685048064,-150.0,0.00016647,2]
[399803210,1766685048075,-150.0,0.00016647,2]
[399803211,1766685048085,-150.0,0.00016647,2]
[399803212,1766685048094,-150.0,0.00016654,2]
[399803213,1766685048105,-536.56,0.00016659,2]
[399803214,1766685048115,-6129.06210547,0.0001666,2]
[399803215,1766685048125,-1175.0,0.0001666,2]
[399803216,1766685048135,-150.0,0.00016667,2]
[399803217,1766685048145,-150.0,0.00016668,2]
[399803218,1766685048155,-150.0,0.0001667,2]
[399803219,1766685048165,-1175.0,0.0001667,2]
[399803220,1766685048175,-1627.68,0.00016675,2]
[399803221,1766685048186,-10147.35490038,0.00016676,2]
[399803222,1766685048196,-150.0,0.00016677,2]
[399803223,1766685048206,-150.0,0.00016687,2]
[399803224,1766685048216,-150.0,0.00016689,2]
[399803225,1766685048225,-1175.0,0.00016691,2]
[399803226,1766685048235,-150.0,0.00016691,2]
[399803227,1766685048245,-150.0,0.00016691,2]
[399803228,1766685048255,-150.0,0.00016695,2]
[399803229,1766685048266,-1175.0,0.00016697,2]
[399803230,1766685048277,-595.37131296,0.00016697,2]
[399803231,1766685048287,-150.0,0.00016698,2]
[399803232,1766685048297,-150.0,0.00016703,2]
[399803233,1766685048308,-150.0,0.00016707,2]
[399803234,1766685048320,-150.0,0.00016708,2]
[399803235,1766685048329,-150.0,0.0001671,2]
[399803236,1766685048342,-150.0,0.00016718,2]
[399803237,1766685048352,-166.66,0.00016721,2]
[399803238,1766685048364,-300.0,0.00016726,2]
[399803239,1766685048374,-150.0,0.00016727,2]
[399803240,1766685048384,-1000.0,0.00016727,2]
[399803241,1766685048396,-150.0,0.00016727,2]
[399803242,1766685048407,-150.0,0.00016727,2]
[399803243,1766685048417,-150.0,0.00016728,2]
[399803244,1766685048427,-1000.0,0.00016731,2]
[399803245,1766685048438,-308.61264672,0.00016731,2]
[399803246,1766685048448,-500.0,0.00016731,2]
[399803247,1766685048458,-500.0,0.00016731,2]
[399803248,1766685048469,-500.0,0.00016731,2]
[399803249,1766685048479,-598.60555363,0.00016731,2]
[399803250,1766685048489,-500.0,0.00016731,2]
[399803251,1766685048499,-500.0,0.00016731,2]
[399803252,1766685048509,-559.28446362,0.00016731,2]
[399803253,1766685048520,-500.0,0.00016731,2]
[399803254,1766685048530,-500.0,0.00016731,2]
[399803255,1766685048540,-500.0,0.00016731,2]
[399803256,1766685048551,-500.0,0.00016731,2]
[399803257,1766685048561,-500.0,0.00016731,2]
[399803258,1766685048571,-500.0,0.00016731,2]
[399803259,1766685048582,-500.0,0.00016731,2]
[399803260,1766685048592,-207.3850141,0.00016731,2]
[399803261,1766685048603,-500.0,0.00016731,2]
[399803262,1766685048613,-500.0,0.00016731,2]
[399803263,1766685048628,-150.0,0.00016732,2]
[399803264,1766685048638,-150.0,0.00016732,2]
[399803265,1766685048649,-188.55950753,0.00016737,2]
[399803266,1766685048660,-150.0,0.00016739,2]
[399803267,1766685048670,-150.0,0.00016744,2]
[399803268,1766685048681,-150.0,0.00016746,2]
[399803269,1766685048691,-150.0,0.00016748,2]
[399803270,1766685048702,-150.0,0.00016753,2]
[399803271,1766685048713,-150.0,0.00016756,2]
[399803272,1766685048723,-150.0,0.0001676,2]
[399803273,1766685048734,-150.0,0.00016765,2]
[399803274,1766685048744,-150.0,0.00016765,2]
[399803275,1766685048754,-150.0,0.00016766,2]
[399803276,1766685048763,-150.0,0.00016766,2]
[399803277,1766685048774,-150.0,0.0001677,2]
[399803278,1766685048784,-300.0,0.00016771,2]
[399803279,1766685048795,-150.0,0.00016772,2]
[399803280,1766685048805,-150.0,0.00016774,2]
[399803281,1766685048816,-1175.0,0.00016781,2]
[399803282,1766685048826,-150.0,0.00016785,2]
[399803283,1766685048836,-150.0,0.00016786,2]
[399803284,1766685048847,-150.0,0.00016792,2]
[399803285,1766685048857,-150.0,0.00016792,2]
[399803286,1766685048867,-150.0,0.00016795,2]
[399803287,1766685048877,-300.0,0.000168,2]
[399803288,1766685048887,-1768.45409778,0.000168,2]
[399803289,1766685048898,-150.0,0.00016801,2]
[399803290,1766685048909,-150.0,0.00016802,2]
[399803291,1766685048919,-300.0,0.00016805,2]
[399803292,1766685048929,-150.0,0.00016806,2]
[399803293,1766685048941,-150.0,0.00016807,2]
[399803294,1766685048951,-1175.0,0.00016808,2]
[399803295,1766685048962,-150.0,0.00016814,2]
[399803296,1766685048972,-150.0,0.00016816,2]
[399803297,1766685048982,-150.0,0.00016826,2]
[399803298,1766685048992,-150.0,0.00016827,2]
[399803299,1766685049003,-150.0,0.00016827,2]
[399803300,1766685049013,-926.45060488,0.0001683,2]
[399803301,1766685049024,-150.0,0.00016832,2]
[399803302,1766685049034,-1000.0,0.00016832,2]
[399803303,1766685049045,-150.0,0.00016838,2]
[399803304,1766685049055,-150.0,0.00016839,2]
[399803305,1766685049067,-150.0,0.00016839,2]
[399803306,1766685049077,-1000.0,0.0001684,2]
[399803307,1766685049089,-150.0,0.00016841,2]
[399803308,1766685049099,-1000.0,0.00016842,2]
[399803309,1766685049110,-150.0,0.00016842,2]
[399803310,1766685049120,-150.0,0.00016845,2]
[399803311,1766685049130,-1000.0,0.00016846,2]
[399803312,1766685049140,-150.0,0.00016846,2]
[399803313,1766685049150,-300.0,0.0001685,2]